fUSD/lending_fUSD_20240625
["ID","MTS","AMOUNT","RATE_DAILY","PERIOD"]
[330398995,1719347444802,-500.0,0.00019178,2]
[330398997,1719347444811,-367.20562493,0.00019178,2]
[330398999,1719347444823,-132.79437507,0.00019178,2]
[330399001,1719347444831,-2060.25,0.00019178,2]
[330399003,1719347444841,-618.64889917,0.00019178,2]
[330399021,1719347444999,-1415.55102347,0.00019178,2]
[330399024,1719347445022,-80.32007736,0.00019178,2]
[330399026,1719347445031,-177.94652021,0.00019178,2]
[330399030,1719347445058,-271.7099987,0.00019178,2]
[330399085,1719347445545,-515.92348109,0.00019178,2]
[330399087,1719347445555,-109.43642438,0.00019178,2]
[330399093,1719347445597,-390.56357562,0.00019178,2]
[330399095,1719347445606,-2388.95,0.00019178,2]
[330399098,1719347445615,-3152.6,0.00019178,2]
[330399101,1719347445624,-500.0,0.00019178,2]
[330399104,1719347445635,-1401.37,0.00019178,2]
[330399107,1719347445645,-500.0,0.00019178,2]
[330399110,1719347445654,-814.37,0.00019178,2]
[330399113,1719347445663,-500.0,0.00019178,2]
[330399115,1719347445672,-611.11,0.00019178,2]
[330399117,1719347445681,-500.0,0.00019178,2]
[330399118,1719347445690,-500.0,0.00019178,2]
[330399119,1719347445699,-1325.45,0.00019178,2]
[330399120,1719347445708,-500.0,0.00019178,2]
[330399121,1719347445717,-2113.68,0.00019178,2]
[330399122,1719347445727,-500.0,0.00019178,2]
[330399123,1719347445735,-1169.79,0.00019178,2]
[330399124,1719347445744,-14941.89,0.00019178,2]
[330399125,1719347445753,-701.99,0.00019178,2]
[330399126,1719347445762,-947.61,0.00019178,2]
[330399127,1719347445771,-500.0,0.00019178,2]
[330399128,1719347445780,-692.42,0.00019178,2]
[330399129,1719347445789,-569.17,0.00019178,2]
[330399130,1719347445798,-1222.53642438,0.00019178,2]
[330399131,1719347446320,-167.08357562,0.00019178,2]
[330399132,1719347446330,-661.54143328,0.00019178,2]
[330399133,1719347446347,-450.0,0.00019178,2]
[330399134,1719347446360,-364.34368253,0.00019178,2]
[330399135,1719347446675,-557.61488419,0.00019178,2]
[330399136,1719347446686,-380.27394442,0.00019178,2]
[330399137,1719347446698,-119.72605558,0.00019178,2]
[330399138,1719347446709,-335.39792459,0.00019178,2]
[330399139,1719347446721,-810.57207541,0.00019178,2]
[330399140,1719347446730,-500.0,0.00019178,2]
[330399141,1719347446740,-560.05,0.00019178,2]
[330399142,1719347446750,-1534.59291573,0.00019178,2]
[330399143,1719347446761,-2218.14126097,0.00019178,2]
[330399144,1719347446772,-1565.0,0.00019178,2]
[330399145,1719347446784,-319.31715993,0.00019178,2]
[330399146,1719347446804,-152.45,0.00018855,2]
[330399147,1719347446814,-1231.57866337,0.00019178,2]
[330399148,1719347446824,-3137.7,0.00019178,2]
[330399149,1719347446833,-500.0,0.00019178,2]
[330399150,1719347446842,-579.28,0.00019178,2]
[330399151,1719347446851,-923.7,0.00019178,2]
[330399152,1719347446861,-342.09583843,0.00019178,2]
[330399153,1719347446872,-546.47,0.00019178,2]
[330399154,1719347446881,-2401.39,0.00019178,2]
[330399155,1719347446893,-500.0,0.00019178,2]
[330399156,1719347446903,-569.27,0.00019178,2]
[330399157,1719347446912,-1140.3,0.00019178,2]
[330399158,1719347446921,-625.02,0.00019178,2]
[330399159,1719347446930,-500.0,0.00019178,2]
[330399160,1719347446940,-7131.7,0.00019178,2]
[330399161,1719347446949,-2052.2,0.00019178,2]
[330399162,1719347446959,-500.0,0.00019178,2]
[330399163,1719347446969,-17266.35261407,0.00019178,2]
[330399164,1719347446980,-284.02268952,0.00019178,2]
[330399165,1719347447000,-3608.12469641,0.00019178,2]
[330399166,1719347447010,-500.0,0.00019178,2]
[330399167,1719347447019,-10564.0,0.00019178,2]
[330399168,1719347447029,-599.18,0.00019178,2]
[330399169,1719347447038,-500.0,0.00019178,2]
[330399170,1719347447047,-500.0,0.00019178,2]
[330399171,1719347447057,-500.0,0.00019178,2]
[330399172,1719347447066,-3252.78,0.00019178,2]
[330399173,1719347447076,-961.03,0.00019178,2]
[330399174,1719347447085,-500.0,0.00019178,2]
[330399175,1719347447094,-500.0,0.00019178,2]
[330399176,1719347447104,-570.86,0.00019178,2]
[330399177,1719347447113,-780.33,0.00019178,2]
[330399178,1719347447123,-500.0,0.00019178,2]
[330399179,1719347447132,-584.2,0.00019178,2]
[330399180,1719347447143,-500.0,0.00019178,2]
[330399181,1719347447152,-1320.82,0.00019178,2]
[330399182,1719347447161,-1277.4,0.00019178,2]
[330399183,1719347447171,-710.31,0.00019178,2]
[330399184,1719347447182,-2358.42,0.00019178,2]
[330399185,1719347447191,-500.0,0.00019178,2]
[330399186,1719347447200,-1148.87,0.00019178,2]
[330399187,1719347447210,-500.0,0.00019178,2]
[330399188,1719347447219,-22234.45,0.00019178,2]
[330399189,1719347447229,-4074.6,0.00019178,2]
[330399190,1719347447239,-822.95,0.00019178,2]
[330399191,1719347447249,-2867.46,0.00019178,2]
[330399192,1719347447258,-483.69531694,0.00019178,2]
[330399193,1719347447267,-736.14,0.00019178,2]
[330399194,1719347447277,-22377.99,0.00019178,2]
[330399195,1719347447288,-1589.8,0.00019178,2]
[330399196,1719347447297,-531.9,0.00019178,2]
[330399197,1719347447308,-500.0,0.00019178,2]
[330399198,1719347447320,-500.0,0.00019178,2]
[330399199,1719347447329,-3742.16,0.00019178,2]
[330399200,1719347447338,-500.0,0.00019178,2]
[330399201,1719347447348,-1374.41,0.00019178,2]
[330399202,1719347447359,-1219.92,0.00019178,2]
[330399203,1719347447368,-500.0,0.00019178,2]
[330399204,1719347447378,-500.0,0.00019178,2]
[330399205,1719347447390,-500.0,0.00019178,2]
[330399206,1719347447407,-500.0,0.00019178,2]
[330399207,1719347447419,-1744.78,0.00019178,2]
[330399208,1719347447428,-1070.07,0.00019178,2]
[330399209,1719347447438,-1657.0,0.00019178,2]
[330399210,1719347447448,-23351.61,0.00019178,2]
[330399211,1719347447459,-250.16661176,0.00019178,2]
[330399212,1719347447468,-720.28,0.00019178,2]
[330399213,1719347447477,-500.0,0.00019178,2]
[330399214,1719347447487,-500.0,0.00019178,2]
[330399215,1719347447496,-516.75,0.00019178,2]
[330399216,1719347447505,-616.75,0.00019178,2]
[330399217,1719347447515,-1414.45,0.00019178,2]
[330399218,1719347447524,-645.02,0.00019178,2]
[330399219,1719347447533,-2369.29,0.00019178,2]
[330399220,1719347447544,-604.45,0.00019178,2]
[330399221,1719347447557,-500.0,0.00019178,2]
[330399222,1719347447567,-500.0,0.00019178,2]
[330399223,1719347447576,-2910.04,0.00019178,2]
[330399224,1719347447585,-1946.9,0.00019178,2]
[330399225,1719347447595,-4926.42,0.00019178,2]
[330399226,1719347447604,-1540.95,0.00019178,2]
[330399227,1719347447613,-1903.3,0.00019178,2]
[330399228,1719347447623,-500.0,0.00019178,2]
[330399229,1719347447632,-552.37098884,0.00019178,2]
[330399230,1719347447642,-988.5,0.00019178,2]
[330399231,1719347447651,-500.0,0.00019178,2]
[330399232,1719347447660,-540.71,0.00019178,2]
[330399233,1719347447669,-500.0,0.00019178,2]
[330399234,1719347447678,-1067.64,0.00019178,2]
[330399235,1719347447688,-1422.49,0.00019178,2]
[330399236,1719347447697,-915.24,0.00019178,2]
[330399237,1719347447706,-577.25786657,0.00019178,2]
[330399238,1719347447715,-1238.82,0.00019178,2]
[330399239,1719347447724,-500.0,0.00019178,2]
[330399240,1719347447734,-1819.39,0.00019178,2]
[330399241,1719347447744,-678.7,0.00019178,2]
[330399242,1719347447754,-500.0,0.00019178,2]
[330399243,1719347447763,-500.0,0.00019178,2]
[330399244,1719347447772,-7573.31,0.00019178,2]
[330399245,1719347447782,-12572.83,0.00019178,2]
[330399246,1719347447792,-1838.91,0.00019178,2]
[330399247,1719347447801,-804.43,0.00019178,2]
[330399248,1719347447810,-1812.15,0.00019178,2]
[330399249,1719347447820,-540.3,0.00019178,2]
[330399250,1719347447829,-500.0,0.00019178,2]
[330399251,1719347448013,-500.0,0.00019178,2]
[330399252,1719347448024,-950.8,0.00019178,2]
[330399253,1719347448033,-6375.61,0.00019178,2]
[330399254,1719347448043,-500.0,0.00019178,2]
[330399255,1719347448053,-9363.77,0.00019178,2]
[330399256,1719347448062,-720.68,0.00019178,2]
[330399257,1719347448071,-656.88,0.00019178,2]
[330399258,1719347448080,-1519.21,0.00019178,2]
[330399259,1719347448089,-962.78,0.00019178,2]
[330399260,1719347448099,-3301.69,0.00019178,2]
[330399261,1719347448108,-500.0,0.00019178,2]
[330399262,1719347448117,-549.5,0.00019178,2]
[330399263,1719347448126,-500.0,0.00019178,2]
[330399264,1719347448136,-500.0,0.00019178,2]
[330399265,1719347448146,-1641.09,0.00019178,2]
[330399266,1719347448155,-500.0,0.00019178,2]
[330399267,1719347448164,-1391.68,0.00019178,2]
[330399268,1719347448173,-500.0,0.00019178,2]
[330399269,1719347448183,-1179.45,0.00019178,2]
[330399270,1719347448192,-725.77,0.00019178,2]
[330399271,1719347448201,-1359.46,0.00019178,2]
[330399272,1719347448210,-1728.4,0.00019178,2]
[330399273,1719347448219,-500.0,0.00019178,2]
[330399274,1719347448229,-1237.82,0.00019178,2]
[330399275,1719347448238,-500.0,0.00019178,2]
[330399276,1719347448247,-500.0,0.00019178,2]
[330399277,1719347448257,-4731.85,0.00019178,2]
[330399278,1719347448267,-891.58,0.00019178,2]
[330399279,1719347448276,-500.0,0.00019178,2]
[330399280,1719347448286,-500.0,0.00019178,2]
[330399281,1719347448296,-524.8472101,0.00019178,2]
[330399282,1719347448306,-706.22,0.00019178,2]
[330399283,1719347448319,-581.22,0.00019178,2]
[330399284,1719347448329,-533.79,0.00019178,2]
[330399285,1719347448338,-500.0,0.00019178,2]
[330399286,1719347448348,-1168.48,0.00019178,2]
[330399287,1719347448358,-595.01,0.00019178,2]
[330399288,1719347448366,-500.0,0.00019178,2]
[330399289,1719347448375,-1304.84,0.00019178,2]
[330399290,1719347448386,-500.0,0.00019178,2]
[330399291,1719347448398,-500.0,0.00019178,2]
[330399292,1719347448408,-500.0,0.00019178,2]
[330399293,1719347448416,-671.29,0.00019178,2]
[330399294,1719347448425,-4174.89,0.00019178,2]
[330399295,1719347448434,-500.0,0.00019178,2]
[330399296,1719347448443,-1423.8,0.00019178,2]
[330399297,1719347448452,-2299.09,0.00019178,2]
[330399298,1719347448461,-500.0,0.00019178,2]
[330399299,1719347448470,-500.0,0.00019178,2]
[330399300,1719347448479,-3257.53,0.00019178,2]
[330399301,1719347448489,-1473.83,0.00019178,2]
[330399302,1719347448498,-963.5,0.00019178,2]
[330399303,1719347448507,-834.03,0.00019178,2]
[330399304,1719347448516,-500.0,0.00019178,2]
[330399305,1719347448525,-842.26,0.00019178,2]
[330399306,1719347448534,-500.0,0.00019178,2]
[330399307,1719347448543,-1344.23,0.00019178,2]
[330399308,1719347448552,-4691.11,0.00019178,2]
[330399309,1719347448561,-500.0,0.00019178,2]
[330399310,1719347448570,-2727.12,0.00019178,2]
[330399311,1719347448579,-977.69,0.00019178,2]
[330399312,1719347448588,-4665.26,0.00019178,2]
[330399313,1719347448597,-542.03,0.00019178,2]
[330399314,1719347448606,-500.0,0.00019178,2]
[330399315,1719347448615,-500.0,0.00019178,2]
[330399316,1719347448624,-500.0,0.00019178,2]
[330399317,1719347448636,-500.0,0.00019178,2]
[330399318,1719347448645,-1742.42,0.00019178,2]
[330399319,1719347448655,-4108.83,0.00019178,2]
[330399320,1719347448664,-764.78,0.00019178,2]
[330399321,1719347448676,-500.0,0.00019178,2]
[330399322,1719347448686,-1640.14,0.00019178,2]
[330399323,1719347448695,-500.0,0.00019178,2]
[330399324,1719347448704,-500.0,0.00019178,2]
[330399325,1719347448713,-500.0,0.00019178,2]
[330399326,1719347448722,-22180.31,0.00019178,2]
[330399327,1719347448731,-500.0,0.00019178,2]
[330399328,1719347448740,-1159.12,0.00019178,2]
[330399329,1719347448749,-500.0,0.00019178,2]
[330399330,1719347448758,-1423.84,0.00019178,2]
[330399331,1719347448767,-31614.93,0.00019178,2]
[330399332,1719347448776,-1643.58,0.00019178,2]
[330399333,1719347448785,-876.26,0.00019178,2]
[330399334,1719347448794,-500.0,0.00019178,2]
[330399335,1719347448803,-500.0,0.00019178,2]
[330399336,1719347448813,-218.66361806,0.00019178,2]
[330399337,1719347448822,-1150.95,0.00019178,2]
[330399338,1719347448830,-741.8,0.00019178,2]
[330399339,1719347448840,-640.25,0.00019178,2]
[330399340,1719347448849,-1082.76,0.00019178,2]
[330399341,1719347448865,-500.0,0.00019178,2]
[330399342,1719347448875,-1813.6,0.00019178,2]
[330399343,1719347448887,-683.72,0.00019178,2]
[330399344,1719347448897,-500.0,0.00019178,2]
[330399345,1719347448906,-500.0,0.00019178,2]
[330399346,1719347448915,-500.0,0.00019178,2]
[330399347,1719347448925,-504.69,0.00019178,2]
[330399348,1719347448935,-500.0,0.00019178,2]
[330399349,1719347448945,-2752.22,0.00019178,2]
[330399350,1719347448954,-602.62,0.00019178,2]
[330399351,1719347448964,-1888.77,0.00019178,2]
[330399352,1719347448973,-612.49,0.00019178,2]
[330399353,1719347448983,-872.76,0.00019178,2]
[330399354,1719347448992,-1980.84,0.00019178,2]
[330399355,1719347449001,-500.0,0.00019178,2]
[330399356,1719347449012,-500.0,0.00019178,2]
[330399357,1719347449022,-756.06,0.00019178,2]
[330399358,1719347449032,-500.0,0.00019178,2]
[330399359,1719347449043,-859.05,0.00019178,2]
[330399360,1719347449053,-3205.45,0.00019178,2]
[330399361,1719347449062,-692.42,0.00019178,2]
[330399362,1719347449072,-500.0,0.00019178,2]
[330399363,1719347449081,-500.0,0.00019178,2]
[330399364,1719347449090,-598.5,0.00019178,2]
[330399365,1719347449100,-747.19,0.00019178,2]
[330399366,1719347449109,-500.0,0.00019178,2]
[330399367,1719347449119,-662.42,0.00019178,2]
[330399368,1719347449130,-1129.95,0.00019178,2]
[330399369,1719347449141,-500.0,0.00019178,2]
[330399370,1719347449150,-579.99,0.00019178,2]
[330399371,1719347449160,-800.71,0.00019178,2]
[330399372,1719347449169,-500.0,0.00019178,2]
[330399373,1719347449179,-500.0,0.00019178,2]
[330399374,1719347449189,-500.0,0.00019178,2]
[330399375,1719347449198,-581.42334053,0.00019178,2]
[330399376,1719347449208,-500.0,0.00019178,2]
[330399377,1719347449218,-4465.04,0.00019178,2]
[330399378,1719347449229,-500.0,0.00019178,2]
[330399379,1719347449239,-500.0,0.00019178,2]
[330399380,1719347449249,-745.45,0.00019178,2]
[330399381,1719347449259,-9253.84,0.00019178,2]
[330399382,1719347449269,-500.0,0.00019178,2]
[330399383,1719347449279,-500.0,0.00019178,2]
[330399384,1719347449288,-872.87,0.00019178,2]
[330399385,1719347449298,-549.95,0.00019178,2]
[330399386,1719347449311,-1625.6,0.00019178,2]
[330399387,1719347449321,-1990.86,0.00019178,2]
[330399388,1719347449331,-600.36,0.00019178,2]
[330399389,1719347449340,-1987.74,0.00019178,2]
[330399390,1719347449351,-500.0,0.00019178,2]
[330399391,1719347449361,-500.0,0.00019178,2]
[330399392,1719347449371,-500.0,0.00019178,2]
[330399393,1719347449381,-878.89,0.00019178,2]
[330399394,1719347449397,-500.0,0.00019178,2]
[330399395,1719347449407,-500.0,0.00019178,2]
[330399396,1719347449417,-1713.47,0.00019178,2]
[330399397,1719347449428,-943.5,0.00019178,2]
[330399398,1719347449438,-500.0,0.00019178,2]
[330399399,1719347449448,-848.49,0.00019178,2]
[330399400,1719347449459,-2502.75,0.00019178,2]
[330399401,1719347449469,-2508.92,0.00019178,2]
[330399402,1719347449479,-500.0,0.00019178,2]
[330399403,1719347449489,-1263.18,0.00019178,2]
[330399404,1719347449499,-1008.58,0.00019178,2]
[330399405,1719347449508,-5414.98,0.00019178,2]
[330399406,1719347449518,-500.0,0.00019178,2]
[330399407,1719347449529,-748.58,0.00019178,2]
[330399408,1719347449538,-500.0,0.00019178,2]
[330399409,1719347449548,-500.0,0.00019178,2]
[330399410,1719347449557,-500.0,0.00019178,2]
[330399411,1719347449567,-250.0,0.00019178,2]
[330399412,1719347449577,-2297.4003546,0.00019219,2]
[330399413,1719347449587,-1615.47926435,0.00019219,2]
[330399414,1719347449596,-500.0,0.00019296,2]
[330399415,1719347449606,-264.3264858,0.00019351,2]
[330399416,1719347449616,-169.84796896,0.00019352,2]
[330399417,1719347449626,-9000.0,0.00019352,2]
[330399418,1719347449636,-2894.50833415,0.00019361,2]
[330399419,1719347449646,-230.41932498,0.0001943,2]
[330399420,1719347449656,-1628.33075206,0.00019441,2]
[330399421,1719347449666,-689.73177959,0.00019447,2]
[330399422,1719347449676,-500.0,0.00019452,2]
[330399423,1719347449686,-500.0,0.00019452,2]
[330399424,1719347449695,-500.0,0.00019452,2]
[330399425,1719347449710,-500.0,0.00019452,2]
[330399426,1719347449720,-500.0,0.00019452,2]
[330399427,1719347449730,-885.54,0.00019452,2]
[330399428,1719347449740,-500.0,0.00019452,2]
[330399429,1719347449750,-500.0,0.00019452,2]
[330399430,1719347449761,-548.37,0.00019452,2]
[330399431,1719347449771,-500.0,0.00019452,2]
[330399432,1719347449781,-518.3143726,0.00019452,2]
[330399433,1719347449791,-500.0,0.00019452,2]
[330399434,1719347449802,-500.0,0.00019452,2]
[330399435,1719347449811,-500.0,0.00019452,2]
[330399436,1719347449822,-500.0,0.00019452,2]
[330399437,1719347449833,-500.0,0.00019452,2]
[330399438,1719347449843,-743.86,0.00019452,2]
[330399439,1719347449853,-500.0,0.00019452,2]
[330399440,1719347449864,-500.0,0.00019452,2]
[330399441,1719347449874,-500.0,0.00019452,2]
[330399442,1719347449885,-500.0,0.00019452,2]
[330399443,1719347449895,-500.0,0.00019452,2]
[330399444,1719347449905,-500.0,0.00019452,2]
[330399445,1719347449914,-500.0,0.00019452,2]
[330399446,1719347449923,-500.0,0.00019452,2]
[330399447,1719347449933,-1005.19,0.00019452,2]
[330399448,1719347449943,-542.22,0.00019452,2]
[330399449,1719347449953,-517.06,0.00019452,2]
[330399450,1719347449963,-500.0,0.00019452,2]
[330399451,1719347449972,-500.0,0.00019452,2]
[330399452,1719347449982,-500.0,0.00019452,2]
[330399453,1719347449992,-500.0,0.00019452,2]
[330399454,1719347450002,-272.28671394,0.00019452,2]
[330399455,1719347450012,-1042.93,0.00019452,2]
[330399456,1719347450023,-500.0,0.00019452,2]
[330399457,1719347450032,-500.0,0.00019452,2]
[330399458,1719347450042,-500.0,0.00019452,2]
[330399459,1719347450052,-500.0,0.00019452,2]
[330399460,1719347450062,-500.0,0.00019452,2]
[330399461,1719347450072,-2092.13,0.00019452,2]
[330399462,1719347450081,-500.0,0.00019452,2]
[330399463,1719347450091,-633.63,0.00019452,2]
[330399464,1719347450101,-878.56,0.00019452,2]
[330399465,1719347450110,-500.0,0.00019452,2]
[330399466,1719347450120,-500.0,0.00019452,2]
[330399467,1719347450129,-646.93,0.00019452,2]
[330399468,1719347450140,-500.0,0.00019452,2]
[330399469,1719347450149,-500.0,0.00019452,2]
[330399470,1719347450158,-500.0,0.00019452,2]
[330399471,1719347450168,-500.0,0.00019452,2]
[330399472,1719347450178,-551.43,0.00019452,2]
[330399473,1719347450187,-500.0,0.00019452,2]
[330399474,1719347450197,-537.14,0.00019452,2]
[330399475,1719347450207,-500.0,0.00019452,2]
[330399476,1719347450216,-500.0,0.00019452,2]
[330399477,1719347450226,-500.0,0.00019452,2]
[330399478,1719347450235,-558.89,0.00019452,2]
[330399479,1719347450246,-500.0,0.00019452,2]
[330399480,1719347450255,-710.59,0.00019452,2]
[330399481,1719347450265,-886.3,0.00019452,2]
[330399482,1719347450274,-500.0,0.00019452,2]
[330399483,1719347450284,-500.0,0.00019452,2]
[330399484,1719347450293,-689.39,0.00019452,2]
[330399485,1719347450303,-603.13,0.00019452,2]
[330399486,1719347450317,-528.2,0.00019452,2]
[330399487,1719347450327,-500.0,0.00019452,2]
[330399488,1719347450336,-500.0,0.00019452,2]
[330399489,1719347450346,-500.0,0.00019452,2]
[330399490,1719347450355,-500.0,0.00019452,2]
[330399491,1719347450365,-500.0,0.00019452,2]
[330399492,1719347450375,-635.08,0.00019452,2]
[330399493,1719347450386,-500.0,0.00019452,2]
[330399494,1719347450397,-500.0,0.00019452,2]
[330399495,1719347450406,-500.0,0.00019452,2]
[330399496,1719347450416,-500.0,0.00019452,2]
[330399497,1719347450426,-500.0,0.00019452,2]
[330399498,1719347450435,-500.0,0.00019452,2]
[330399499,1719347450444,-500.0,0.00019452,2]
[330399500,1719347450454,-500.0,0.00019452,2]
[330399501,1719347450463,-500.0,0.00019452,2]
[330399502,1719347450472,-500.0,0.00019452,2]
[330399503,1719347450482,-500.0,0.00019452,2]
[330399504,1719347450491,-500.0,0.00019452,2]
[330399505,1719347450500,-500.0,0.00019452,2]
[330399506,1719347450509,-500.0,0.00019452,2]
[330399507,1719347450519,-500.0,0.00019452,2]
[330399508,1719347450528,-500.0,0.00019452,2]
[330399509,1719347450538,-612.92,0.00019452,2]
[330399510,1719347450548,-500.0,0.00019452,2]
[330399511,1719347450557,-500.0,0.00019452,2]
[330399512,1719347450566,-500.0,0.00019452,2]
[330399513,1719347450575,-500.0,0.00019452,2]
[330399514,1719347450584,-643.97,0.00019452,2]
[330399515,1719347450593,-500.0,0.00019452,2]
[330399516,1719347450603,-500.0,0.00019452,2]
[330399517,1719347450612,-500.0,0.00019452,2]
[330399518,1719347450621,-500.0,0.00019452,2]
[330399519,1719347450631,-500.0,0.00019452,2]
[330399520,1719347450641,-500.0,0.00019452,2]
[330399521,1719347450651,-500.0,0.00019452,2]
[330399522,1719347450660,-500.0,0.00019452,2]
[330399523,1719347451071,-500.0,0.00019452,2]
[330399524,1719347451081,-622.2,0.00019452,2]
[330399525,1719347451091,-279.50842806,0.00019452,2]
[330399526,1719347451100,-500.0,0.00019452,2]
[330399527,1719347451110,-504.33,0.00019452,2]
[330399528,1719347451119,-500.0,0.00019452,2]
[330399529,1719347451129,-500.0,0.00019452,2]
[330399530,1719347451141,-500.0,0.00019452,2]
[330399531,1719347451151,-500.0,0.00019452,2]
[330399532,1719347451161,-500.0,0.00019452,2]
[330399533,1719347451171,-6295.6,0.00019452,2]
[330399534,1719347451179,-500.0,0.00019452,2]
[330399535,1719347451189,-500.0,0.00019452,2]
[330399536,1719347451198,-500.0,0.00019452,2]
[330399537,1719347451207,-500.0,0.00019452,2]
[330399538,1719347451218,-500.0,0.00019452,2]
[330399539,1719347451228,-686.21,0.00019452,2]
[330399540,1719347451237,-500.0,0.00019452,2]
[330399541,1719347451247,-500.0,0.00019452,2]
[330399542,1719347451257,-500.0,0.00019452,2]
[330399543,1719347451266,-880.93,0.00019452,2]
[330399544,1719347451276,-1961.13,0.00019452,2]
[330399545,1719347451285,-500.0,0.00019452,2]
[330399546,1719347451294,-918.95,0.00019452,2]
[330399547,1719347451303,-713.77,0.00019452,2]
[330399548,1719347451316,-500.0,0.00019452,2]
[330399549,1719347451326,-500.0,0.00019452,2]
[330399550,1719347451335,-610.28421276,0.00019452,2]
[330399551,1719347451344,-598.82110576,0.00019452,2]
[330399552,1719347451355,-2148.37,0.00019452,2]
[330399553,1719347451364,-500.0,0.00019452,2]
[330399554,1719347451373,-500.0,0.00019452,2]
[330399555,1719347451382,-500.0,0.00019452,2]
[330399556,1719347451394,-589.22,0.00019452,2]
[330399557,1719347451404,-500.0,0.00019452,2]
[330399558,1719347451413,-500.0,0.00019452,2]
[330399559,1719347451422,-500.0,0.00019452,2]
[330399560,1719347451431,-599.9,0.00019452,2]
[330399561,1719347451440,-1733.54,0.00019452,2]
[330399562,1719347451449,-500.0,0.00019452,2]
[330399563,1719347451458,-549.18,0.00019452,2]
[330399564,1719347451468,-500.0,0.00019452,2]
[330399565,1719347451477,-500.0,0.00019452,2]
[330399566,1719347451486,-500.0,0.00019452,2]
[330399567,1719347451495,-500.0,0.00019452,2]
[330399568,1719347451504,-500.0,0.00019452,2]
[330399569,1719347451514,-500.0,0.00019452,2]
[330399570,1719347451523,-500.0,0.00019452,2]
[330399571,1719347451532,-500.0,0.00019452,2]
[330399572,1719347451541,-500.0,0.00019452,2]
[330399573,1719347451550,-500.0,0.00019452,2]
[330399574,1719347451559,-741.6,0.00019452,2]
[330399575,1719347451568,-500.0,0.00019452,2]
[330399576,1719347451577,-500.0,0.00019452,2]
[330399577,1719347451597,-500.0,0.00019452,2]
[330399578,1719347451607,-720.18,0.00019452,2]
[330399579,1719347451617,-2250.56,0.00019452,2]
[330399580,1719347451627,-289.599319,0.00019452,2]
[330399581,1719347451638,-1031.37,0.00019452,2]
[330399582,1719347451649,-657.12,0.00019452,2]
[330399583,1719347451658,-547.41,0.00019452,2]
[330399584,1719347451668,-500.0,0.00019452,2]
[330399585,1719347451681,-500.0,0.00019452,2]
[330399586,1719347451691,-1761.66,0.00019452,2]
[330399587,1719347451700,-500.0,0.00019452,2]
[330399588,1719347451710,-589.26,0.00019452,2]
[330399589,1719347451720,-500.0,0.00019452,2]
[330399590,1719347451731,-500.0,0.00019452,2]
[330399591,1719347451741,-571.83,0.00019452,2]
[330399592,1719347451751,-1430.45,0.00019452,2]
[330399593,1719347451761,-500.0,0.00019452,2]
[330399594,1719347451771,-500.0,0.00019452,2]
[330399595,1719347451780,-593.64,0.00019452,2]
[330399596,1719347451790,-646.7,0.00019452,2]